[Event "Titled Tuesday Blitz November 07 Early 2023"]
[White "Quirke, Jeffrey"]
[Black "Azali, Tannaz"]
[WhiteFideId "2013029"]
[BlackFideId "12537721"]
[WhiteElo "2252"]
[BlackElo "2398"]
[Result "0-1"]
[Round "11"]
[TimeControl "180+1"]
[Date "2023.11.07"]
[WhiteClock "0:00:00"]
[BlackClock "0:00:33"]
[Board "115"]

1. e4 {[%clk 0:02:56]}  c5 {[%clk 0:02:59]} 2. c3 {[%clk 0:02:55]}  d5 {[%clk 0:02:58]} 3. exd5 {[%clk 0:02:54]}  Qxd5 {[%clk 0:02:58]} 4. d4 {[%clk 0:02:55]}  e6 {[%clk 0:02:53]} 5. Nf3 {[%clk 0:02:54]}  Nf6 {[%clk 0:02:53]} 6. Be3 {[%clk 0:02:54]}  Be7 {[%clk 0:02:48]} 7. dxc5 {[%clk 0:02:48]}  O-O {[%clk 0:02:27]} 8. Na3 {[%clk 0:02:02]}  Rd8 {[%clk 0:02:13]} 9. Qxd5 {[%clk 0:01:51]}  Nxd5 {[%clk 0:01:58]} 10. Bd4 {[%clk 0:01:45]}  Nd7 {[%clk 0:01:56]} 11. b4 {[%clk 0:01:41]}  a5 {[%clk 0:01:56]} 12. Nc2 {[%clk 0:01:29]}  f6 {[%clk 0:01:37]} 13. Bc4 {[%clk 0:01:27]}  Nf8 {[%clk 0:01:14]} 14. O-O {[%clk 0:01:19]}  e5 {[%clk 0:01:11]} 15. Be3 {[%clk 0:01:12]}  Be6 {[%clk 0:01:11]} 16. Bxd5 {[%clk 0:00:56]}  Bxd5 {[%clk 0:01:10]} 17. Nd2 {[%clk 0:00:47]}  axb4 {[%clk 0:00:59]} 18. Nxb4 {[%clk 0:00:20]}  Bc6 {[%clk 0:00:57]} 19. Nxc6 {[%clk 0:00:20]}  bxc6 {[%clk 0:00:57]} 20. Nc4 {[%clk 0:00:19]}  Ne6 {[%clk 0:00:54]} 21. a4 {[%clk 0:00:15]}  Bxc5 {[%clk 0:00:52]} 22. a5 {[%clk 0:00:13]}  Bxe3 {[%clk 0:00:51]} 23. Nxe3 {[%clk 0:00:14]}  Nc5 {[%clk 0:00:51]} 24. Rfb1 {[%clk 0:00:12]}  Ra6 {[%clk 0:00:47]} 25. Rb6 {[%clk 0:00:11]}  Rda8 {[%clk 0:00:46]} 26. Rxa6 {[%clk 0:00:11]}  Rxa6 {[%clk 0:00:46]} 27. Nc4 {[%clk 0:00:11]}  Kf7 {[%clk 0:00:47]} 28. Kf1 {[%clk 0:00:11]}  Ke6 {[%clk 0:00:47]} 29. Rd1 {[%clk 0:00:10]}  Nb7 {[%clk 0:00:46]} 30. Ke2 {[%clk 0:00:05]}  Ke7 {[%clk 0:00:44]} 31. Kf3 {[%clk 0:00:04]}  Ke6 {[%clk 0:00:40]} 32. g4 {[%clk 0:00:05]}  g6 {[%clk 0:00:39]} 33. h4 {[%clk 0:00:05]}  f5 {[%clk 0:00:40]} 34. gxf5+ {[%clk 0:00:06]}  gxf5 {[%clk 0:00:40]} 35. Ke2 {[%clk 0:00:04]}  c5 {[%clk 0:00:36]} 36. Rg1 {[%clk 0:00:04]}  Nd6 {[%clk 0:00:32]} 37. Nxd6 {[%clk 0:00:03]}  Kxd6 {[%clk 0:00:32]} 38. Rg7 {[%clk 0:00:03]}  Rxa5 {[%clk 0:00:32]} 39. Rxh7 {[%clk 0:00:03]}  Kd5 {[%clk 0:00:33]} 40. Rf7 {[%clk 0:00:02]}  Ke4 {[%clk 0:00:33]} 41. h5 {[%clk 0:00:02]}  Ra2+ {[%clk 0:00:32]} 42. Kf1 {[%clk 0:00:03]}  Ra3 {[%clk 0:00:32]} 43. h6 {[%clk 0:00:00]}  Rxc3 {[%clk 0:00:33]} 0-1


[Site "https://www.chess.com"]

[Event "Titled Tuesday Blitz November 07 Early 2023"]
[White "SlippperyWhenWet"]
[Black "Ismayilova, Khanim"]
[BlackFideId "13429019"]
[WhiteElo "2330"]
[BlackElo "2167"]
[Result "1-0"]
[Round "11"]
[TimeControl "180+1"]
[Date "2023.11.07"]
[WhiteClock "0:00:13"]
[BlackClock "0:00:09"]
[Board "118"]

1. e4 {[%clk 0:03:00]}  c5 {[%clk 0:02:59]} 2. Nf3 {[%clk 0:02:58]}  Nc6 {[%clk 0:02:59]} 3. Be2 {[%clk 0:02:55]}  Nf6 {[%clk 0:02:55]} 4. Nc3 {[%clk 0:02:53]}  e6 {[%clk 0:02:50]} 5. O-O {[%clk 0:02:46]}  d5 {[%clk 0:02:49]} 6. exd5 {[%clk 0:02:45]}  exd5 {[%clk 0:02:46]} 7. d4 {[%clk 0:02:45]}  Be7 {[%clk 0:02:44]} 8. dxc5 {[%clk 0:02:38]}  Bxc5 {[%clk 0:02:45]} 9. Bg5 {[%clk 0:02:38]}  Be6 {[%clk 0:02:44]} 10. Re1 {[%clk 0:02:31]}  O-O {[%clk 0:02:44]} 11. Bb5 {[%clk 0:02:15]}  h6 {[%clk 0:02:30]} 12. Bxf6 {[%clk 0:02:13]}  Qxf6 {[%clk 0:02:26]} 13. Nxd5 {[%clk 0:02:12]}  Qxb2 {[%clk 0:02:24]} 14. Rb1 {[%clk 0:01:57]}  Qxa2 {[%clk 0:02:22]} 15. Bxc6 {[%clk 0:01:31]}  bxc6 {[%clk 0:02:16]} 16. Nf4 {[%clk 0:01:32]}  Bf5 {[%clk 0:02:09]} 17. Nd3 {[%clk 0:01:22]}  Rad8 {[%clk 0:02:01]} 18. Ra1 {[%clk 0:00:39]}  Qc4 {[%clk 0:01:08]} 19. Qe2 {[%clk 0:00:35]}  Bxd3 {[%clk 0:01:00]} 20. cxd3 {[%clk 0:00:36]}  Qxd3 {[%clk 0:00:35]} 21. Qxd3 {[%clk 0:00:36]}  Rxd3 {[%clk 0:00:36]} 22. Rec1 {[%clk 0:00:36]}  Rd5 {[%clk 0:00:27]} 23. g3 {[%clk 0:00:28]}  Rfd8 {[%clk 0:00:11]} 24. Ra6 {[%clk 0:00:25]}  R8d6 {[%clk 0:00:08]} 25. h4 {[%clk 0:00:20]}  Rf6 {[%clk 0:00:08]} 26. Kg2 {[%clk 0:00:16]}  Rdf5 {[%clk 0:00:07]} 27. Rc3 {[%clk 0:00:15]}  Rd5 {[%clk 0:00:04]} 28. g4 {[%clk 0:00:08]}  Rf4 {[%clk 0:00:02]} 29. g5 {[%clk 0:00:07]}  Rg4+ {[%clk 0:00:02]} 30. Kh3 {[%clk 0:00:07]}  Rf4 {[%clk 0:00:02]} 31. Kg3 {[%clk 0:00:06]}  Rdf5 {[%clk 0:00:02]} 32. Rxc6 {[%clk 0:00:04]}  Bb6 {[%clk 0:00:02]} 33. Rc8+ {[%clk 0:00:04]}  Kh7 {[%clk 0:00:02]} 34. gxh6 {[%clk 0:00:05]}  gxh6 {[%clk 0:00:02]} 35. R8c6 {[%clk 0:00:05]}  Rf6 {[%clk 0:00:03]} 36. Rxf6 {[%clk 0:00:04]}  Rxf6 {[%clk 0:00:04]} 37. Ne5 {[%clk 0:00:04]}  Rg6+ {[%clk 0:00:05]} 38. Nxg6 {[%clk 0:00:02]}  fxg6 {[%clk 0:00:06]} 39. Rd3 {[%clk 0:00:02]}  Kg7 {[%clk 0:00:06]} 40. Rd7+ {[%clk 0:00:03]}  Kf6 {[%clk 0:00:07]} 41. Kf3 {[%clk 0:00:04]}  a5 {[%clk 0:00:06]} 42. Rh7 {[%clk 0:00:04]}  h5 {[%clk 0:00:06]} 43. Ke4 {[%clk 0:00:04]}  Bc5 {[%clk 0:00:05]} 44. Rh8 {[%clk 0:00:04]}  a4 {[%clk 0:00:05]} 45. Ra8 {[%clk 0:00:05]}  a3 {[%clk 0:00:05]} 46. f4 {[%clk 0:00:05]}  Bb4 {[%clk 0:00:05]} 47. Ra6+ {[%clk 0:00:06]}  Kf7 {[%clk 0:00:05]} 48. f5 {[%clk 0:00:06]}  gxf5+ {[%clk 0:00:05]} 49. Kxf5 {[%clk 0:00:07]}  Kg7 {[%clk 0:00:05]} 50. Kg5 {[%clk 0:00:07]}  Kh7 {[%clk 0:00:04]} 51. Kxh5 {[%clk 0:00:08]}  Bc5 {[%clk 0:00:03]} 52. Kg5 {[%clk 0:00:08]}  Bb4 {[%clk 0:00:04]} 53. Ra7+ {[%clk 0:00:08]}  Kg8 {[%clk 0:00:04]} 54. Kg6 {[%clk 0:00:09]}  Kf8 {[%clk 0:00:04]} 55. h5 {[%clk 0:00:09]}  Ke8 {[%clk 0:00:05]} 56. Ra8+ {[%clk 0:00:10]}  Ke7 {[%clk 0:00:05]} 57. h6 {[%clk 0:00:10]}  Kd6 {[%clk 0:00:04]} 58. h7 {[%clk 0:00:11]}  Kd5 {[%clk 0:00:05]} 59. h8=Q {[%clk 0:00:11]}  Kc4 {[%clk 0:00:06]} 60. Qc8+ {[%clk 0:00:11]}  Kb3 {[%clk 0:00:07]} 61. Rxa3+ {[%clk 0:00:11]}  Kxa3 {[%clk 0:00:07]} 62. Qa6+ {[%clk 0:00:11]}  Kb2 {[%clk 0:00:07]} 63. Kf5 {[%clk 0:00:12]}  Ba3 {[%clk 0:00:07]} 64. Ke4 {[%clk 0:00:12]}  Bb4 {[%clk 0:00:08]} 65. Kd3 {[%clk 0:00:12]}  Ba3 {[%clk 0:00:08]} 66. Qc4 {[%clk 0:00:12]}  Kb1 {[%clk 0:00:08]} 67. Qc2+ {[%clk 0:00:13]}  Ka1 {[%clk 0:00:08]} 68. Qe2 {[%clk 0:00:13]}  Bb2 {[%clk 0:00:09]} 69. Kc4 {[%clk 0:00:13]}  Bc3 {[%clk 0:00:10]} 70. Kb3 {[%clk 0:00:13]}  Bb2 {[%clk 0:00:10]} 71. Qd1+ {[%clk 0:00:13]}  Bc1 {[%clk 0:00:10]} 72. Qd4+ {[%clk 0:00:12]}  Bb2 {[%clk 0:00:09]} 73. Qxb2# {[%clk 0:00:13]} 1-0


[Site "https://www.chess.com"]

[Event "Titled Tuesday Blitz November 07 Early 2023"]
[White "Zaksaite, Salomeja"]
[Black "Sakun, Volodymyr"]
[WhiteFideId "12801496"]
[BlackFideId "14114062"]
[WhiteElo "2329"]
[BlackElo "2625"]
[Result "1/2-1/2"]
[Round "11"]
[TimeControl "180+1"]
[Date "2023.11.07"]
[WhiteClock "0:00:07"]
[BlackClock "0:00:16"]
[Board "119"]

1. e4 {[%clk 0:02:57]}  e5 {[%clk 0:02:58]} 2. Nf3 {[%clk 0:02:55]}  Nc6 {[%clk 0:02:59]} 3. d4 {[%clk 0:02:55]}  exd4 {[%clk 0:02:58]} 4. Nxd4 {[%clk 0:02:56]}  Bc5 {[%clk 0:02:59]} 5. Be3 {[%clk 0:02:50]}  Qf6 {[%clk 0:02:59]} 6. c3 {[%clk 0:02:45]}  Nge7 {[%clk 0:02:58]} 7. Qd2 {[%clk 0:01:57]}  Nxd4 {[%clk 0:02:09]} 8. cxd4 {[%clk 0:01:53]}  Bb6 {[%clk 0:02:08]} 9. Nc3 {[%clk 0:01:53]}  O-O {[%clk 0:02:06]} 10. Bc4 {[%clk 0:01:37]}  Qg6 {[%clk 0:01:44]} 11. O-O {[%clk 0:01:27]}  d6 {[%clk 0:01:44]} 12. f4 {[%clk 0:01:24]}  d5 {[%clk 0:01:19]} 13. f5 {[%clk 0:01:14]}  Qd6 {[%clk 0:01:07]} 14. e5 {[%clk 0:01:10]}  Qd8 {[%clk 0:01:06]} 15. Bd3 {[%clk 0:00:48]}  f6 {[%clk 0:00:49]} 16. e6 {[%clk 0:00:43]}  c6 {[%clk 0:00:43]} 17. Rae1 {[%clk 0:00:40]}  Bc7 {[%clk 0:00:43]} 18. Bf4 {[%clk 0:00:39]}  b6 {[%clk 0:00:37]} 19. Re3 {[%clk 0:00:34]}  g5 {[%clk 0:00:25]} 20. fxg6 {[%clk 0:00:31]}  hxg6 {[%clk 0:00:24]} 21. Bh6 {[%clk 0:00:28]}  Qd6 {[%clk 0:00:17]} 22. Bf4 {[%clk 0:00:07]}  Qd8 {[%clk 0:00:17]} 23. Bh6 {[%clk 0:00:07]}  Qd6 {[%clk 0:00:16]} 24. Bf4 {[%clk 0:00:07]}  Qd8 {[%clk 0:00:16]} 1/2-1/2


[Site "https://www.chess.com"]

[Event "Titled Tuesday Blitz November 07 Early 2023"]
[White "Buchenau, Frank"]
[Black "Kuchava, Ana"]
[WhiteFideId "4604350"]
[BlackFideId "13605348"]
[WhiteElo "2444"]
[BlackElo "2243"]
[Result "1-0"]
[Round "11"]
[TimeControl "180+1"]
[Date "2023.11.07"]
[WhiteClock "0:00:38"]
[BlackClock "0:00:00"]
[Board "121"]

1. e4 {[%clk 0:02:55]}  c5 {[%clk 0:02:58]} 2. Nf3 {[%clk 0:02:54]}  d6 {[%clk 0:02:58]} 3. Bb5+ {[%clk 0:02:53]}  Bd7 {[%clk 0:02:55]} 4. a4 {[%clk 0:02:50]}  a6 {[%clk 0:02:53]} 5. Bxd7+ {[%clk 0:02:50]}  Qxd7 {[%clk 0:02:54]} 6. a5 {[%clk 0:02:48]}  Nc6 {[%clk 0:02:52]} 7. d4 {[%clk 0:02:41]}  cxd4 {[%clk 0:02:47]} 8. Nxd4 {[%clk 0:02:40]}  Nf6 {[%clk 0:02:48]} 9. Nc3 {[%clk 0:02:38]}  g6 {[%clk 0:02:47]} 10. f3 {[%clk 0:02:35]}  Bg7 {[%clk 0:02:46]} 11. Be3 {[%clk 0:02:35]}  O-O {[%clk 0:02:45]} 12. Na4 {[%clk 0:02:31]}  Qc7 {[%clk 0:02:36]} 13. Nb6 {[%clk 0:02:29]}  Rad8 {[%clk 0:02:35]} 14. Qd2 {[%clk 0:01:59]}  Ne5 {[%clk 0:02:24]} 15. O-O {[%clk 0:01:25]}  Nc4 {[%clk 0:02:14]} 16. Qc3 {[%clk 0:01:17]}  d5 {[%clk 0:01:25]} 17. b3 {[%clk 0:01:00]}  e5 {[%clk 0:00:52]} 18. bxc4 {[%clk 0:00:59]}  exd4 {[%clk 0:00:51]} 19. Bxd4 {[%clk 0:00:59]}  Ne8 {[%clk 0:00:04]} 20. Bxg7 {[%clk 0:00:48]}  Nxg7 {[%clk 0:00:05]} 21. Nxd5 {[%clk 0:00:42]}  Qc5+ {[%clk 0:00:03]} 22. Kh1 {[%clk 0:00:42]}  Rc8 {[%clk 0:00:01]} 23. Nf6+ {[%clk 0:00:38]}  Kh8 {[%clk 0:00:00]} 24. Nd7 {[%clk 0:00:38]} 1-0


[Site "https://www.chess.com"]

[Event "Titled Tuesday Blitz November 07 Early 2023"]
[White "Mirza, Diana"]
[Black "Vifleemskaia, Svetlana"]
[WhiteFideId "2503999"]
[BlackFideId "4129490"]
[WhiteElo "1985"]
[BlackElo "2264"]
[Result "0-1"]
[Round "11"]
[TimeControl "180+1"]
[Date "2023.11.07"]
[WhiteClock "0:00:06"]
[BlackClock "0:01:10"]
[Board "126"]

1. e4 {[%clk 0:03:00]}  e5 {[%clk 0:02:59]} 2. Nf3 {[%clk 0:02:59]}  Nc6 {[%clk 0:02:59]} 3. Bc4 {[%clk 0:02:58]}  Nf6 {[%clk 0:02:58]} 4. O-O {[%clk 0:02:56]}  Nxe4 {[%clk 0:02:57]} 5. Re1 {[%clk 0:02:55]}  d5 {[%clk 0:02:57]} 6. Bb5 {[%clk 0:02:53]}  Bd7 {[%clk 0:02:28]} 7. d3 {[%clk 0:02:35]}  Nc5 {[%clk 0:02:19]} 8. Nxe5 {[%clk 0:02:27]}  Nxe5 {[%clk 0:02:17]} 9. Rxe5+ {[%clk 0:02:27]}  Ne6 {[%clk 0:02:14]} 10. Bxd7+ {[%clk 0:02:11]}  Qxd7 {[%clk 0:02:14]} 11. Nc3 {[%clk 0:02:10]}  c6 {[%clk 0:02:14]} 12. d4 {[%clk 0:02:01]}  Bd6 {[%clk 0:02:13]} 13. Re1 {[%clk 0:02:00]}  O-O-O {[%clk 0:02:13]} 14. Ne2 {[%clk 0:01:53]}  Qc7 {[%clk 0:02:04]} 15. g3 {[%clk 0:01:47]}  g5 {[%clk 0:02:02]} 16. c4 {[%clk 0:01:45]}  dxc4 {[%clk 0:02:01]} 17. b3 {[%clk 0:01:45]}  c3 {[%clk 0:01:49]} 18. Nxc3 {[%clk 0:01:44]}  h5 {[%clk 0:01:48]} 19. Ne4 {[%clk 0:01:44]}  Nxd4 {[%clk 0:01:35]} 20. Bxg5 {[%clk 0:01:22]}  Be7 {[%clk 0:01:27]} 21. Bxe7 {[%clk 0:01:08]}  Qxe7 {[%clk 0:01:25]} 22. Nd2 {[%clk 0:00:47]}  Qd7 {[%clk 0:01:22]} 23. Re3 {[%clk 0:00:26]}  Ne6 {[%clk 0:01:16]} 24. Re2 {[%clk 0:00:17]}  h4 {[%clk 0:01:16]} 25. Qc2 {[%clk 0:00:15]}  hxg3 {[%clk 0:01:15]} 26. fxg3 {[%clk 0:00:14]}  Nd4 {[%clk 0:01:10]} 27. Qd3 {[%clk 0:00:09]}  Nxe2+ {[%clk 0:01:10]} 28. Qxe2 {[%clk 0:00:06]}  Qxd2 {[%clk 0:01:10]} 0-1


[Site "https://www.chess.com"]

[Event "Titled Tuesday Blitz November 07 Early 2023"]
[White "Marcziter, Dmitrii"]
[Black "Sviridova, Vlada"]
[WhiteFideId "13900765"]
[BlackFideId "24109606"]
[WhiteElo "2360"]
[BlackElo "2196"]
[Result "0-1"]
[Round "11"]
[TimeControl "180+1"]
[Date "2023.11.07"]
[WhiteClock "0:00:00"]
[BlackClock "0:00:05"]
[Board "127"]

1. d4 {[%clk 0:03:00]}  d5 {[%clk 0:02:59]} 2. c4 {[%clk 0:03:00]}  c6 {[%clk 0:02:59]} 3. Nf3 {[%clk 0:02:58]}  Nf6 {[%clk 0:02:59]} 4. Nc3 {[%clk 0:02:48]}  dxc4 {[%clk 0:02:59]} 5. a4 {[%clk 0:02:48]}  Bf5 {[%clk 0:02:58]} 6. a5 {[%clk 0:02:47]}  e6 {[%clk 0:02:51]} 7. e3 {[%clk 0:02:46]}  Bb4 {[%clk 0:02:50]} 8. Qa4 {[%clk 0:02:45]}  Qe7 {[%clk 0:02:39]} 9. Bxc4 {[%clk 0:02:43]}  O-O {[%clk 0:02:39]} 10. O-O {[%clk 0:02:41]}  Nbd7 {[%clk 0:02:39]} 11. h3 {[%clk 0:02:17]}  h6 {[%clk 0:02:35]} 12. Bd2 {[%clk 0:02:05]}  b5 {[%clk 0:02:31]} 13. axb6 {[%clk 0:02:03]}  axb6 {[%clk 0:02:31]} 14. Qxa8 {[%clk 0:02:01]}  Rxa8 {[%clk 0:02:30]} 15. Rxa8+ {[%clk 0:02:02]}  Kh7 {[%clk 0:02:30]} 16. Rfa1 {[%clk 0:01:45]}  c5 {[%clk 0:02:13]} 17. R1a7 {[%clk 0:01:11]}  Bxc3 {[%clk 0:02:03]} 18. Bxc3 {[%clk 0:01:09]}  Be4 {[%clk 0:02:03]} 19. Rc8 {[%clk 0:01:03]}  Bxf3 {[%clk 0:01:38]} 20. gxf3 {[%clk 0:01:02]}  Qd6 {[%clk 0:01:33]} 21. Rcc7 {[%clk 0:00:59]}  Kg6 {[%clk 0:00:55]} 22. Bd3+ {[%clk 0:00:56]}  Kh5 {[%clk 0:00:54]} 23. Bb5 {[%clk 0:00:55]}  cxd4 {[%clk 0:00:20]} 24. Bxd4 {[%clk 0:00:53]}  e5 {[%clk 0:00:19]} 25. Bc3 {[%clk 0:00:49]}  Nc5 {[%clk 0:00:19]} 26. Rxf7 {[%clk 0:00:46]}  Qd1+ {[%clk 0:00:19]} 27. Kg2 {[%clk 0:00:45]}  e4 {[%clk 0:00:16]} 28. fxe4 {[%clk 0:00:38]}  Ncxe4 {[%clk 0:00:14]} 29. Bxf6 {[%clk 0:00:25]}  Nxf6 {[%clk 0:00:10]} 30. Rxg7 {[%clk 0:00:21]}  Qd5+ {[%clk 0:00:09]} 31. Kh2 {[%clk 0:00:17]}  Qxb5 {[%clk 0:00:10]} 32. Raf7 {[%clk 0:00:15]}  Qe5+ {[%clk 0:00:10]} 33. Kg2 {[%clk 0:00:13]}  Qe4+ {[%clk 0:00:10]} 34. f3 {[%clk 0:00:12]}  Qc2+ {[%clk 0:00:10]} 35. Kg3 {[%clk 0:00:11]}  Nd5 {[%clk 0:00:09]} 36. e4 {[%clk 0:00:04]}  Ne3 {[%clk 0:00:07]} 37. Kf4 {[%clk 0:00:03]}  Ng2+ {[%clk 0:00:07]} 38. Kf5 {[%clk 0:00:02]}  Qc5+ {[%clk 0:00:06]} 39. Kf6 {[%clk 0:00:00]}  Qd6+ {[%clk 0:00:05]} 0-1


[Site "https://www.chess.com"]

[Event "Titled Tuesday Blitz November 07 Early 2023"]
[White "Todev, Simeon"]
[Black "Yushko, Olga"]
[WhiteFideId "2925133"]
[BlackFideId "14114500"]
[WhiteElo "2341"]
[BlackElo "2094"]
[Result "0-1"]
[Round "11"]
[TimeControl "180+1"]
[Date "2023.11.07"]
[WhiteClock "0:00:17"]
[BlackClock "0:01:48"]
[Board "128"]

1. e4 {[%clk 0:02:52]}  e6 {[%clk 0:02:59]} 2. Nf3 {[%clk 0:02:52]}  d5 {[%clk 0:02:59]} 3. d4 {[%clk 0:02:52]}  Nf6 {[%clk 0:02:59]} 4. exd5 {[%clk 0:02:52]}  exd5 {[%clk 0:02:59]} 5. Nc3 {[%clk 0:02:52]}  Be7 {[%clk 0:03:00]} 6. Bd3 {[%clk 0:02:51]}  O-O {[%clk 0:03:00]} 7. O-O {[%clk 0:02:52]}  c5 {[%clk 0:03:00]} 8. Bg5 {[%clk 0:02:51]}  Nc6 {[%clk 0:02:59]} 9. dxc5 {[%clk 0:02:51]}  Bxc5 {[%clk 0:02:59]} 10. Nxd5 {[%clk 0:02:49]}  Qxd5 {[%clk 0:02:41]} 11. Bxf6 {[%clk 0:02:49]}  Qh5 {[%clk 0:02:41]} 12. Bc3 {[%clk 0:02:35]}  Bg4 {[%clk 0:02:40]} 13. Be2 {[%clk 0:02:20]}  Rad8 {[%clk 0:02:38]} 14. Qc1 {[%clk 0:02:17]}  Rfe8 {[%clk 0:02:35]} 15. Bd1 {[%clk 0:02:06]}  h6 {[%clk 0:02:19]} 16. Qf4 {[%clk 0:02:02]}  Bd6 {[%clk 0:02:11]} 17. Qc4 {[%clk 0:00:58]}  Bxf3 {[%clk 0:02:03]} 18. g3 {[%clk 0:00:47]}  Bxd1 {[%clk 0:01:51]} 19. Raxd1 {[%clk 0:00:17]}  Bxg3 {[%clk 0:01:48]} 0-1


[Site "https://www.chess.com"]

[Event "Titled Tuesday Blitz November 07 Early 2023"]
[White "parintele_chess"]
[Black "Awoki, Daniel Teidi"]
[BlackFideId "2100827"]
[WhiteElo "2218"]
[BlackElo "2275"]
[Result "1-0"]
[Round "11"]
[TimeControl "180+1"]
[Date "2023.11.07"]
[WhiteClock "0:00:11"]
[BlackClock "0:00:17"]
[Board "130"]

1. d4 {[%clk 0:03:00]}  Nf6 {[%clk 0:02:59]} 2. Bf4 {[%clk 0:02:58]}  c5 {[%clk 0:02:58]} 3. e3 {[%clk 0:02:58]}  d5 {[%clk 0:02:58]} 4. Nf3 {[%clk 0:02:57]}  Qb6 {[%clk 0:02:58]} 5. Nc3 {[%clk 0:02:53]}  a6 {[%clk 0:02:55]} 6. dxc5 {[%clk 0:02:26]}  Qxb2 {[%clk 0:02:52]} 7. Na4 {[%clk 0:02:23]}  Qb4+ {[%clk 0:02:46]} 8. c3 {[%clk 0:02:21]}  Qa5 {[%clk 0:02:46]} 9. Be2 {[%clk 0:02:00]}  Nbd7 {[%clk 0:02:39]} 10. O-O {[%clk 0:01:58]}  Nxc5 {[%clk 0:02:37]} 11. Nxc5 {[%clk 0:01:56]}  Qxc5 {[%clk 0:02:38]} 12. Ne5 {[%clk 0:01:44]}  e6 {[%clk 0:02:36]} 13. Nd3 {[%clk 0:01:25]}  Qa5 {[%clk 0:02:33]} 14. Be5 {[%clk 0:01:21]}  Be7 {[%clk 0:02:33]} 15. Qc2 {[%clk 0:00:57]}  Bd7 {[%clk 0:02:24]} 16. Rab1 {[%clk 0:00:56]}  b5 {[%clk 0:02:21]} 17. Nb4 {[%clk 0:00:50]}  O-O {[%clk 0:02:18]} 18. Bd3 {[%clk 0:00:50]}  h6 {[%clk 0:02:17]} 19. f4 {[%clk 0:00:40]}  Rfc8 {[%clk 0:02:17]} 20. Qf2 {[%clk 0:00:33]}  Ng4 {[%clk 0:02:04]} 21. Qf3 {[%clk 0:00:32]}  Nxe5 {[%clk 0:02:01]} 22. fxe5 {[%clk 0:00:33]}  Be8 {[%clk 0:02:02]} 23. e4 {[%clk 0:00:33]}  d4 {[%clk 0:01:53]} 24. Nd5 {[%clk 0:00:25]}  exd5 {[%clk 0:01:39]} 25. exd5 {[%clk 0:00:26]}  Rxc3 {[%clk 0:01:39]} 26. d6 {[%clk 0:00:25]}  Rac8 {[%clk 0:01:02]} 27. dxe7 {[%clk 0:00:17]}  Qa3 {[%clk 0:00:53]} 28. e6 {[%clk 0:00:17]}  Qxe7 {[%clk 0:00:39]} 29. Qe4 {[%clk 0:00:12]}  g6 {[%clk 0:00:18]} 30. exf7+ {[%clk 0:00:11]}  Bxf7 {[%clk 0:00:18]} 31. Qxe7 {[%clk 0:00:10]}  Rxd3 {[%clk 0:00:16]} 32. Qxf7+ {[%clk 0:00:10]}  Kh8 {[%clk 0:00:16]} 33. Rbe1 {[%clk 0:00:08]}  Re3 {[%clk 0:00:14]} 34. Rxe3 {[%clk 0:00:08]}  dxe3 {[%clk 0:00:15]} 35. Qf6+ {[%clk 0:00:09]}  Kh7 {[%clk 0:00:15]} 36. Qe7+ {[%clk 0:00:09]}  Kh8 {[%clk 0:00:15]} 37. Rf8+ {[%clk 0:00:10]}  Rxf8 {[%clk 0:00:16]} 38. Qxf8+ {[%clk 0:00:10]}  Kh7 {[%clk 0:00:17]} 39. Qe7+ {[%clk 0:00:11]}  Kh8 {[%clk 0:00:17]} 40. Qxe3 {[%clk 0:00:11]}  Kg7 {[%clk 0:00:17]} 41. Qe6 {[%clk 0:00:11]} 1-0


[Site "https://www.chess.com"]

[Event "Titled Tuesday Blitz November 07 Early 2023"]
[White "abelmat"]
[Black "Smirnov, Timofey"]
[BlackFideId "24176427"]
[WhiteElo "1968"]
[BlackElo "2173"]
[Result "1-0"]
[Round "11"]
[TimeControl "180+1"]
[Date "2023.11.07"]
[WhiteClock "0:00:52"]
[BlackClock "0:00:00"]
[Board "132"]

1. d4 {[%clk 0:03:00]}  d5 {[%clk 0:02:59]} 2. c4 {[%clk 0:03:00]}  c6 {[%clk 0:02:59]} 3. Nf3 {[%clk 0:03:00]}  Nf6 {[%clk 0:02:59]} 4. Nc3 {[%clk 0:03:01]}  e6 {[%clk 0:02:59]} 5. e3 {[%clk 0:03:00]}  a6 {[%clk 0:02:58]} 6. cxd5 {[%clk 0:02:55]}  exd5 {[%clk 0:02:58]} 7. Bd3 {[%clk 0:02:56]}  Bd6 {[%clk 0:02:58]} 8. O-O {[%clk 0:02:56]}  O-O {[%clk 0:02:57]} 9. a3 {[%clk 0:02:56]}  Bg4 {[%clk 0:02:55]} 10. b4 {[%clk 0:02:53]}  Nbd7 {[%clk 0:02:50]} 11. Bb2 {[%clk 0:02:52]}  Re8 {[%clk 0:02:49]} 12. Na4 {[%clk 0:02:52]}  Ne4 {[%clk 0:02:40]} 13. Nc5 {[%clk 0:02:52]}  Ndxc5 {[%clk 0:02:33]} 14. dxc5 {[%clk 0:02:52]}  Bc7 {[%clk 0:02:24]} 15. Be2 {[%clk 0:02:39]}  Bxf3 {[%clk 0:02:05]} 16. Bxf3 {[%clk 0:02:36]}  Be5 {[%clk 0:02:05]} 17. Bd4 {[%clk 0:02:21]}  Bxd4 {[%clk 0:02:03]} 18. exd4 {[%clk 0:02:17]}  Ng5 {[%clk 0:01:53]} 19. Qd3 {[%clk 0:02:01]}  Ne4 {[%clk 0:01:47]} 20. Rfe1 {[%clk 0:01:58]}  f5 {[%clk 0:01:42]} 21. Bh5 {[%clk 0:01:47]}  g6 {[%clk 0:01:41]} 22. Bd1 {[%clk 0:01:37]}  Qg5 {[%clk 0:01:07]} 23. Bf3 {[%clk 0:01:19]}  Re7 {[%clk 0:01:01]} 24. Bxe4 {[%clk 0:01:11]}  Rxe4 {[%clk 0:00:59]} 25. f3 {[%clk 0:01:08]}  Ree8 {[%clk 0:00:54]} 26. Re5 {[%clk 0:01:02]}  Rxe5 {[%clk 0:00:50]} 27. dxe5 {[%clk 0:01:03]}  Re8 {[%clk 0:00:49]} 28. Re1 {[%clk 0:01:03]}  Qf4 {[%clk 0:00:45]} 29. e6 {[%clk 0:00:56]}  Qc4 {[%clk 0:00:38]} 30. Qe3 {[%clk 0:00:53]}  Re7 {[%clk 0:00:00]} 31. Qe5 {[%clk 0:00:52]} 1-0


[Site "https://www.chess.com"]

[Event "Titled Tuesday Blitz November 07 Early 2023"]
[White "Chxss_Khxsbu"]
[Black "DonCiao"]
[WhiteElo "1870"]
[BlackElo "2130"]
[Result "0-1"]
[Round "11"]
[TimeControl "180+1"]
[Date "2023.11.07"]
[WhiteClock "0:00:00"]
[BlackClock "0:01:09"]
[Board "133"]

1. d4 {[%clk 0:01:12]}  Nf6 {[%clk 0:02:58]} 2. c4 {[%clk 0:01:10]}  g6 {[%clk 0:02:58]} 3. Nc3 {[%clk 0:01:09]}  d5 {[%clk 0:02:58]} 4. e3 {[%clk 0:01:03]}  Bg7 {[%clk 0:02:57]} 5. Nf3 {[%clk 0:01:02]}  O-O {[%clk 0:02:57]} 6. Bd3 {[%clk 0:01:02]}  c5 {[%clk 0:02:55]} 7. O-O {[%clk 0:01:00]}  cxd4 {[%clk 0:02:53]} 8. exd4 {[%clk 0:00:59]}  Nc6 {[%clk 0:02:50]} 9. Be3 {[%clk 0:00:40]}  dxc4 {[%clk 0:02:43]} 10. Bxc4 {[%clk 0:00:39]}  Na5 {[%clk 0:02:42]} 11. Be2 {[%clk 0:00:36]}  Be6 {[%clk 0:02:41]} 12. d5 {[%clk 0:00:33]}  Nxd5 {[%clk 0:02:35]} 13. Bd4 {[%clk 0:00:28]}  Nxc3 {[%clk 0:02:22]} 14. bxc3 {[%clk 0:00:26]}  Bc4 {[%clk 0:02:09]} 15. Re1 {[%clk 0:00:22]}  Bxe2 {[%clk 0:02:02]} 16. Qxe2 {[%clk 0:00:22]}  e6 {[%clk 0:01:59]} 17. Rad1 {[%clk 0:00:15]}  Bxd4 {[%clk 0:01:54]} 18. Nxd4 {[%clk 0:00:16]}  Qb6 {[%clk 0:01:52]} 19. Qe5 {[%clk 0:00:13]}  Nc6 {[%clk 0:01:43]} 20. Nxc6 {[%clk 0:00:11]}  Qxc6 {[%clk 0:01:43]} 21. Rd6 {[%clk 0:00:10]}  Qc4 {[%clk 0:01:42]} 22. Red1 {[%clk 0:00:09]}  Rac8 {[%clk 0:01:39]} 23. R6d3 {[%clk 0:00:05]}  Qxa2 {[%clk 0:01:32]} 24. h3 {[%clk 0:00:04]}  Qc4 {[%clk 0:01:28]} 25. Rd7 {[%clk 0:00:03]}  Qxc3 {[%clk 0:01:24]} 26. Qxc3 {[%clk 0:00:03]}  Rxc3 {[%clk 0:01:23]} 27. Rxb7 {[%clk 0:00:03]}  a5 {[%clk 0:01:17]} 28. Ra7 {[%clk 0:00:03]}  Rc5 {[%clk 0:01:16]} 29. Ra1 {[%clk 0:00:02]}  Rfc8 {[%clk 0:01:11]} 30. R7xa5 {[%clk 0:00:00]}  Rxa5 {[%clk 0:01:09]} 0-1


[Site "https://www.chess.com"]